fUSD/lending_fUSD_20240529
["ID","MTS","AMOUNT","RATE_DAILY","PERIOD"]
[328159595,1716965440510,-273.77320886,0.0001299,2]
[328159596,1716965440519,-273.77320886,0.0001299,2]
[328159597,1716965440530,-150.98,0.0001299,2]
[328159598,1716965440539,-150.98,0.0001299,2]
[328159599,1716965440549,-150.98,0.0001299,2]
[328159600,1716965440559,-150.98,0.0001299,2]
[328159601,1716965440569,-150.98,0.0001299,2]
[328159603,1716965440578,-150.98,0.0001299,2]
[328159605,1716965440588,-150.98,0.0001299,2]
[328159606,1716965440597,-150.98,0.0001299,2]
[328159608,1716965440607,-150.98,0.0001299,2]
[328159610,1716965440618,-150.98,0.0001299,2]
[328159612,1716965440627,-150.98,0.0001299,2]
[328159614,1716965440636,-150.98,0.0001299,2]
[328159616,1716965440645,-150.98,0.0001299,2]
[328159618,1716965440655,-150.98,0.0001299,2]
[328159619,1716965440664,-150.98,0.0001299,2]
[328159620,1716965440674,-150.98,0.0001299,2]
[328159621,1716965440683,-150.98,0.0001299,2]
[328159622,1716965440693,-150.98,0.0001299,2]
[328159623,1716965440703,-150.98,0.0001299,2]
[328159624,1716965440712,-150.98,0.0001299,2]
[328159625,1716965440722,-150.98,0.0001299,2]
[328159626,1716965440731,-168.36307162,0.00012998,2]
[328159627,1716965440740,-731.13604982,0.00012998,2]
[328159628,1716965440750,-218.8358322,0.00012999,2]
[328159629,1716965440759,-151.0413497,0.00012999,2]
[328159630,1716965440768,-1581.92099849,0.00012999,2]
[328159631,1716965440778,-150.0,0.00012999,2]
[328159632,1716965440788,-955381.47818575,0.00013,2]
[328159633,1716965440800,-1276.77667961,0.00013,2]
[328159634,1716965440821,-2118.56008162,0.00013,2]
[328159635,1716965440852,-264.24,0.00013,2]
[328159636,1716965441886,-843.599125,0.00013,2]
[328159705,1716965443027,-2254.13053848,0.00013,2]
[328159751,1716965443398,-1805.308765,0.00013,2]
[328159808,1716965446355,-1220.43140725,0.00012999,2]
[328160032,1716966332259,-156.35482525,9.849e-05,2]
[328160033,1716966332282,-166.20040368,9.85e-05,2]
[328160034,1716966332303,-155.0,9.851e-05,2]
[328160035,1716966332328,-743.8,9.857e-05,2]
[328160036,1716966332349,-153.56,9.973e-05,2]
[328160037,1716966332372,-4750.88884035,0.00010858,2]
[328160038,1716966332395,-2422.8058,0.00010859,2]
[328160041,1716966390304,59951.39013072,0.00010859,2]
[328160070,1716966632271,-155.0,0.00010754,2]
[328160071,1716966632281,-231.386,0.00010755,2]
[328160072,1716966632294,-51.8684522,0.00010755,2]
[328160073,1716966632303,-228.09033028,0.00010759,2]
[328160074,1716966632313,-94.14558648,0.00010859,2]
[328160075,1716966632325,-58702.6319067,0.00010859,2]
[328160076,1716966632341,-318.64482262,0.00010859,2]
[328160077,1716966632352,-1346.78709982,0.00010859,2]
[328160078,1716966632364,-3836.3329704,0.00010859,2]
[328160079,1716966632571,-684.54,0.00010859,2]
[328160082,1716966632582,-945.02971513,0.00010859,2]
[328160084,1716966632593,-444.06,0.00010859,2]
[328160086,1716966632605,-7777.94703761,0.00010859,2]
[328160095,1716966638244,-371.59143874,0.00010859,2]
[328160096,1716966639984,-7973.38099271,0.00010859,2]
[328160097,1716966639996,-386723.36926433,0.00010859,2]
[328160098,1716966640005,-180.38347101,0.00010859,2]
[328160099,1716966640014,-153.86904226,0.00011456,2]
[328160100,1716966640023,-250.0,0.00011556,2]
[328160101,1716966640033,-3080.86,0.00011597,2]
[328160102,1716966640043,-182.32,0.00011617,2]
[328160103,1716966640052,-232.34,0.0001165,2]
[328160104,1716966640061,-943.46,0.00011662,2]
[328160105,1716966640070,-3163.78,0.00011671,2]
[328160106,1716966640080,-250.0,0.00011714,2]
[328160107,1716966640089,-908.93,0.00011714,2]
[328160108,1716966640099,-499.99,0.00011714,2]
[328160109,1716966640109,-8026.73,0.00011769,2]
[328160110,1716966640130,-200.0,0.00011775,2]
[328160111,1716966640140,-1000.0,0.00011775,2]
[328160112,1716966640150,-500.0,0.00011789,2]
[328160113,1716966640159,-150.99,0.00011789,2]
[328160114,1716966640169,-226.71,0.00011804,2]
[328160115,1716966640180,-159.07,0.00011874,2]
[328160116,1716966640190,-159.07,0.00012029,2]
[328160117,1716966640201,-23900.0,0.00012091,2]
[328160118,1716966640211,-743.8,0.00012121,2]
[328160119,1716966640221,-159.07,0.00012183,2]
[328160121,1716966640231,-159.07,0.00012338,2]
[328160123,1716966640241,-159.07,0.00012493,2]
[328160125,1716966640250,-2612.59280971,0.00012544,2]
[328160128,1716966640260,-412.17126416,0.00012663,2]
[328160131,1716966640270,-155.0,0.000128,2]
[328160133,1716966640279,-20235.04667288,0.000128,2]
[328160135,1716966640289,-19744.98025864,0.000128,2]
[328160137,1716966640298,-305.58094727,0.000128,2]
[328160139,1716966640308,-362.41340371,0.000128,2]
[328160141,1716966640318,-180.59937556,0.000128,2]
[328160143,1716966640331,-578.6298629,0.000128,2]
[328160145,1716966640341,-198.35,0.00012838,2]
[328160146,1716966640351,-709.43576,0.0001287,2]
[328160147,1716966640360,-689.1049,0.00012899,2]
[328160148,1716966640371,-4748.4176,0.00012899,2]
[328160149,1716966640380,-1000.0,0.00012899,2]
[328160150,1716966640390,-1000.0,0.00012899,2]
[328160151,1716966640399,-2206.5516,0.00012899,2]
[328160152,1716966640412,-858.90689253,0.00012899,2]
[328160153,1716966640421,-858.90689247,0.00012899,2]
[328160154,1716966640431,-858.90689247,0.00012899,2]
[328160155,1716966640440,-858.90689247,0.00012899,2]
[328160156,1716966640450,-858.90689247,0.00012899,2]
[328160157,1716966640460,-858.90689247,0.000129,2]
[328160158,1716966640470,-858.90689247,0.000129,2]
[328160159,1716966640480,-858.90689247,0.000129,2]
[328160160,1716966640489,-858.90689247,0.000129,2]
[328160161,1716966640498,-332.78933446,0.000129,2]
[328160162,1716966640508,-173.84041979,0.000129,2]
[328160163,1716966640517,-858.90689247,0.000129,2]
[328160164,1716966640527,-220.61243853,0.000129,2]
[328160165,1716966640537,-3192.42557878,0.000129,2]
[328160166,1716966640547,-221.56904741,0.000129,2]
[328160167,1716966640557,-173.66,0.00012906,2]
[328160168,1716966640567,-500.0,0.00012935,2]
[328160169,1716966640576,-500.0,0.00012935,2]
[328160170,1716966640586,-500.0,0.00012935,2]
[328160171,1716966640596,-500.0,0.00012935,2]
[328160172,1716966640606,-500.0,0.00012935,2]
[328160173,1716966640616,-349.864,0.00012935,2]
[328160174,1716966640626,-1000.0,0.00012935,2]
[328160175,1716966640635,-1000.0,0.00012935,2]
[328160176,1716966640644,-1000.0,0.00012935,2]
[328160178,1716966640653,-1000.0,0.00012935,2]
[328160180,1716966640664,-1000.0,0.00012935,2]
[328160182,1716966640673,-1000.0,0.00012935,2]
[328160184,1716966640682,-1000.0,0.00012935,2]
[328160186,1716966640692,-1000.0,0.00012935,2]
[328160188,1716966640701,-1000.0,0.00012935,2]
[328160190,1716966640710,-1000.0,0.00012935,2]
[328160192,1716966640720,-821.9421,0.00012935,2]
[328160194,1716966640729,-273.77320886,0.0001299,2]
[328160196,1716966640742,-273.77320886,0.0001299,2]
[328160198,1716966640752,-273.77320886,0.0001299,2]
[328160200,1716966640762,-150.99,0.0001299,2]
[328160202,1716966640772,-150.99,0.0001299,2]
[328160204,1716966640781,-150.99,0.0001299,2]
[328160206,1716966640791,-150.99,0.0001299,2]
[328160208,1716966640800,-150.99,0.0001299,2]
[328160210,1716966640810,-150.99,0.0001299,2]
[328160212,1716966640819,-150.99,0.0001299,2]
[328160214,1716966640829,-150.99,0.0001299,2]
[328160216,1716966640838,-150.99,0.0001299,2]
[328160218,1716966640847,-150.99,0.0001299,2]
[328160220,1716966640857,-150.99,0.0001299,2]
[328160222,1716966640867,-150.99,0.0001299,2]
[328160224,1716966640876,-150.99,0.0001299,2]
[328160226,1716966640886,-150.99,0.0001299,2]
[328160228,1716966640895,-150.99,0.0001299,2]
[328160230,1716966640905,-150.99,0.0001299,2]
[328160232,1716966640915,-150.99,0.0001299,2]
[328160234,1716966640925,-150.99,0.0001299,2]
[328160236,1716966640935,-150.99,0.0001299,2]
[328160238,1716966640944,-150.99,0.0001299,2]
[328160240,1716966640954,-150.99,0.0001299,2]
[328160243,1716966640965,-150.99,0.0001299,2]
[328160245,1716966640974,-156.27696473,0.00012997,2]
[328160247,1716966640983,-168.29483398,0.00012997,2]
[328160249,1716966640993,-5280.97063007,0.00012998,2]
[328160251,1716966641002,-278.17892891,0.00012998,2]
[328160253,1716966641011,-3093.8188963,0.00012998,2]
[328160255,1716966641021,-218.8358322,0.00012998,2]
[328160257,1716966641030,-731.13604982,0.00012998,2]
[328160259,1716966641041,-947.47525297,0.00012998,2]
[328160261,1716966641050,-214.61507558,0.00012998,2]
[328160263,1716966641059,-247.66878589,0.00012999,2]
[328160264,1716966641068,-151.0413497,0.00012999,2]
[328160267,1716966641079,-1378.51576395,0.00012999,2]
[328160269,1716966641088,-150.0,0.00012999,2]
[328160271,1716966641098,-431608.78809473,0.00013,2]
[328160273,1716966641112,-6013.91700001,0.00013,2]
[328160275,1716966641123,-266.37373933,0.00013,2]
[328160278,1716966641135,-19304.36707832,0.00013,2]
[328160279,1716966641379,-3207.735,0.00013,2]
[328160283,1716966641392,-116677.67935746,0.00013,2]
[328160290,1716966641601,-9326.93152479,0.00013,2]
[328160291,1716966641613,-618.63300473,0.00013,2]
[328160292,1716966642763,-1094.72460816,0.00013,2]
[328160293,1716966642775,-328.276,0.00013,2]
[328160345,1716966643369,-1889.08592415,0.00013,2]
[328160348,1716966643380,-3990.51413956,0.00013,2]
[328160350,1716966643392,-1370.64,0.00013,2]
[328160352,1716966643404,-7100.74578436,0.00013,2]
[328160368,1716966643622,-19700.44452572,0.00013,2]
[328160369,1716966643640,-32495.31199998,0.00013,2]
[328160370,1716966643724,-138539.31241154,0.00013,2]
[328160371,1716966643735,-759.79669488,0.00013,2]
[328160372,1716966643864,-1244334.64742677,0.00013,2]
[328160373,1716966643876,-5137.21332774,0.00013,2]
[328160473,1716966646240,-188.83630147,0.00012999,2]
[328160474,1716966646249,-1148.76313662,0.00012999,2]
[328160475,1716966646259,-5811.20056191,0.00013,2]
[328160476,1716966646270,-602.34,0.00013,2]
[328160477,1716966649237,-155.0,0.00012998,2]
[328160478,1716966649247,-477.25287615,0.00013,2]
[328160479,1716966649259,-2990.778085,0.00013,2]
[328160480,1716966649271,-335.30570427,0.00013,2]
[328160481,1716966649282,-283.2823812,0.00013,2]
[328160482,1716966649294,-35933.99331724,0.00013,2]
[328160483,1716966649305,-677.57587675,0.00013,2]
[328160484,1716966649490,-957.30261385,0.00012999,2]
[328160485,1716966649499,-40524.9202255,0.00013,2]
[328160523,1716967832667,-259.25722008,9.656e-05,2]
[328160524,1716967832677,-157.36358456,9.657e-05,2]
[328160525,1716967832687,-267.72285536,9.659e-05,2]
[328160526,1716967836673,-336.59570554,9.659e-05,2]
[328160528,1716967836940,-806.37886916,9.659e-05,2]
[328160529,1716967836954,-280.30298819,9.67e-05,2]
[328160530,1716967836966,-410.82291204,9.67e-05,2]
[328160536,1716967838539,-90.07417022,9.67e-05,2]
[328160537,1716967838549,-518.70596859,0.00010165,2]
[328160538,1716967838561,-150.71403141,0.00010165,2]
[328160539,1716967838570,-180.97025235,0.00010859,2]
[328160540,1716967838579,-250.0,0.00012215,2]
[328160541,1716967838588,-800.0,0.00012383,2]
[328160542,1716967838598,-6784.64,0.00012383,2]
[328160543,1716967838607,-2108.51,0.00012383,2]
[328160544,1716967838618,-200.0,0.00012428,2]
[328160545,1716967838627,-669.42,0.00012429,2]
[328160546,1716967838638,-250.0,0.00012561,2]
[328160547,1716967838648,-327.68398804,0.00012719,2]
[328160548,1716967838658,-211.0101,0.000128,2]
[328160549,1716967838667,-257.2707,0.000128,2]
[328160550,1716967838677,-1528.7,0.000129,2]
[328160551,1716967838686,-52458.3512,0.000129,2]
[328160552,1716967838695,-60972.4944,0.000129,2]
[328160553,1716967838707,-500.0,0.000129,2]
[328160554,1716967838718,-1000.0,0.000129,2]
[328160555,1716967838732,-7500.0,0.000129,2]
[328160556,1716967838741,-2500.0,0.000129,2]
[328160557,1716967838751,-151.0,0.0001299,2]
[328160558,1716967838761,-151.0,0.0001299,2]
[328160559,1716967838771,-151.0,0.0001299,2]
[328160560,1716967838781,-151.0,0.0001299,2]
[328160561,1716967838790,-15936.48178993,0.00012997,2]
[328160562,1716967838800,-247.66878589,0.00012998,2]
[328160563,1716967838811,-947.47525297,0.00012998,2]
[328160564,1716967838822,-214.61507558,0.00012998,2]
[328160565,1716967838832,-731.13604982,0.00012998,2]
[328160566,1716967838841,-218.8358322,0.00012998,2]
[328160567,1716967838852,-3093.8188963,0.00012998,2]
[328160568,1716967838861,-5280.97063007,0.00012998,2]
[328160569,1716967838871,-168.29483398,0.00012998,2]
[328160570,1716967838880,-156.27696473,0.00012998,2]
[328160571,1716967838889,-11116.62741091,0.00012998,2]
[328160572,1716967838899,-151.0413497,0.00012999,2]
[328160573,1716967838910,-1027.50480554,0.00012999,2]
[328160574,1716967838919,-150.0,0.00012999,2]
[328160575,1716967838929,-266535.06410941,0.00013,2]
[328160576,1716967838945,-9992.83246852,0.00013,2]
[328160577,1716967838958,-6006.85056,0.00013,2]
[328160578,1716967838969,-1081.44168439,0.00013,2]
[328160579,1716967838980,-238584.92353791,0.00013,2]
[328160591,1716967839178,-3039.27010649,0.00013,2]
[328160593,1716967839198,-10350.00000005,0.00013,2]
[328160596,1716967839213,-8497.82754026,0.00013,2]
[328160768,1716967845451,-1027.50480554,0.00012999,2]
[328160769,1716967845462,-14604.99119446,0.00013,2]
[328160770,1716967845578,-25199.14884417,0.00013,2]
[328160772,1716967845602,-59916.88822895,0.00013,2]
[328160773,1716967845614,-56120.06400002,0.00013,2]
[328160774,1716967845625,-205047.77600003,0.00013,2]
[328160775,1716967845719,-3403.40989476,0.00013,2]
[328160776,1716967845733,-3003.47739006,0.00013,2]
[328160777,1716967845745,-3050.0,0.00013,2]
[328160778,1716967845756,-235439.58567428,0.00013,2]
[328160779,1716967845768,-45886.52544718,0.00013,2]
[328160780,1716967845780,-498.7999998,0.00013,2]
[328160781,1716967845791,-4650.0,0.00013,2]
[328160782,1716967845986,-11960.39296,0.00013,2]
[328160783,1716967845998,-2623.00964666,0.00013,2]
[328160784,1716967846009,-3558.45,0.00013,2]
[328160785,1716967846242,-694.63902191,0.00013,2]
[328160791,1716967846526,-157.36358456,0.00012999,2]
[328160792,1716967846536,-681.81236544,0.00013,2]
[328160796,1716967846860,-114650.09434819,0.00013,2]
[328160798,1716967846872,-647.00288916,0.00013,2]
[328160799,1716967846883,-1935.72732014,0.00013,2]
[328160802,1716967846895,-4871.44945435,0.00013,2]
[328160871,1716969031644,-155.0,9.555e-05,2]
[328160872,1716969031654,-2189.64859281,9.556e-05,2]
[328160873,1716969031663,-615.34,9.997e-05,2]
[328160874,1716969031673,-2030.92,0.00011915,2]
[328160875,1716969031682,-413.75,0.00011915,2]
[328160876,1716969031691,-1855.46575044,0.00012098,2]
[328160877,1716969031703,-1607.29170079,0.00012098,2]
[328160878,1716969031715,-1742.41254877,0.00012098,2]
[328160879,1716969031724,-250.0,0.00012114,2]
[328160880,1716969031734,-1667.46,0.00012144,2]
[328160881,1716969031744,-640.0,0.0001221,2]
[328160882,1716969031753,-615.34,0.00012261,2]
[328160883,1716969031763,-250.0,0.00012643,2]
[328160884,1716969031773,-175.83,0.00012675,2]
[328160885,1716969031783,-175.83,0.00012707,2]
[328160886,1716969031792,-411.86496791,0.00012714,2]
[328160887,1716969031802,-175.83,0.00012739,2]
[328160888,1716969031812,-1023.94123088,0.00012869,2]
[328160889,1716969031824,-469.02406266,0.00012869,2]
[328160890,1716969031836,-4566.9893877,0.00012869,2]
[328160891,1716969031848,-8050.31801433,0.00012869,2]
[328160892,1716969031857,-499.99,0.00012869,2]
[328160893,1716969031866,-722.86297735,0.0001289,2]
[328160894,1716969031878,-7520.2478751,0.0001289,2]
[328160900,1716969037599,-9348.59390816,0.0001289,2]
[328160901,1716969037608,-150.0,0.00012899,2]
[328160902,1716969037618,-6489.0085,0.000129,2]
[328160903,1716969037628,-3097.70786183,0.000129,2]
[328160904,1716969037639,-500.0,0.000129,2]
[328160905,1716969037648,-1000.0,0.000129,2]
[328160906,1716969037658,-4094.349,0.000129,2]
[328160907,1716969037669,-2500.0,0.000129,2]
[328160908,1716969037678,-7500.0,0.000129,2]
[328160909,1716969037687,-407.19725679,0.000129,2]
[328160910,1716969037697,-381.36,0.00012973,2]
[328160911,1716969037706,-151.0,0.0001299,2]
[328160912,1716969037716,-151.0,0.0001299,2]
[328160913,1716969037726,-151.0,0.0001299,2]
[328160914,1716969037735,-151.0,0.0001299,2]
[328160915,1716969037745,-15936.48178893,0.00012997,2]
[328160916,1716969037755,-1084.15670904,0.00012998,2]
[328160917,1716969037764,-659.60160277,0.00012998,2]
[328160919,1716969037773,-168.29483398,0.00012998,2]
[328160921,1716969037784,-156.27696473,0.00012998,2]
[328160923,1716969037794,-5280.97063007,0.00012998,2]
[328160925,1716969037804,-947.47525297,0.00012998,2]
[328160926,1716969037813,-247.66878589,0.00012998,2]
[328160927,1716969037823,-218.8358322,0.00012998,2]
[328160928,1716969037832,-3093.8188963,0.00012998,2]
[328160929,1716969037842,-214.61507558,0.00012998,2]
[328160930,1716969037851,-731.13604982,0.00012998,2]
[328160931,1716969037860,-278.07869868,0.00012999,2]
[328160932,1716969037869,-411.78939649,0.00012999,2]
[328160933,1716969037878,-1278.70750154,0.00012999,2]
[328160934,1716969037887,-1027.50480554,0.00012999,2]
[328160935,1716969037896,-151.0413497,0.00012999,2]
[328160936,1716969037905,-150.0,0.00012999,2]
[328160937,1716969037914,-249971.14108602,0.00013,2]
[328160938,1716969037926,-196327.58316773,0.00013,2]
[328161149,1716969039944,-8815.17506158,0.00013,2]
[328161150,1716969039958,-8947.21879473,0.00013,2]
[328161151,1716969039973,-8943.78386462,0.00013,2]
[328161152,1716969039987,-9077.54866152,0.00013,2]
[328161153,1716969040001,-8943.84023489,0.00013,2]
[328161154,1716969040160,-143316.19451359,0.00013,2]
[328161155,1716969040174,-23420.28678885,0.00013,2]
[328161215,1716969042673,-2841.67319643,0.000129,2]
[328161218,1716969042686,-703.4542845,0.000129,2]
[328161232,1716969042836,-3752.5,0.000129,2]
[328161237,1716969042893,-202.37251907,0.000129,2]
[328161238,1716969042905,-4778.37484078,0.00013,2]
[328161514,1716969048115,-822.00384443,0.00012999,2]
[328161515,1716969048129,-252494.56570841,0.00013,2]
[328161736,1716970231722,-597.99,0.00010494,2]
[328161737,1716970231732,-153.86904226,0.00011825,2]
[328161738,1716970231741,-4192.69670113,0.00011925,2]
[328161739,1716970231754,-250.0,0.00012332,2]
[328161740,1716970231763,-1819.21,0.00012478,2]
[328161741,1716970231773,-250.0,0.00012574,2]
[328161742,1716970231782,-380.70037141,0.00012694,2]
[328161743,1716970231791,-597.99,0.00012758,2]
[328161744,1716970231800,-4662.3986,0.000128,2]
[328161745,1716970231810,-150.0,0.00012831,2]
[328161746,1716970231820,-155.0,0.00012869,2]
[328161747,1716970231830,-7500.0,0.0001288,2]
[328161748,1716970231839,-199.75000346,0.0001289,2]
[328161749,1716970231849,-228.35024271,0.00012899,2]
[328161750,1716970231859,-228.35024266,0.00012899,2]
[328161751,1716970231868,-228.35024266,0.00012899,2]
[328161752,1716970231877,-228.35024266,0.00012899,2]
[328161753,1716970231887,-228.35024266,0.00012899,2]
[328161754,1716970231896,-228.35024266,0.00012899,2]
[328161755,1716970231905,-228.35024266,0.00012899,2]
[328161756,1716970231915,-228.35024266,0.00012899,2]
[328161757,1716970231925,-228.35024266,0.00012899,2]
[328161758,1716970231934,-7121.52646669,0.00012899,2]
[328161759,1716970231944,-500.0,0.000129,2]
[328161760,1716970231954,-8181.0522,0.000129,2]
[328161761,1716970231964,-542.3784,0.000129,2]
[328161762,1716970231974,-2881.9937641,0.000129,2]
[328161763,1716970231983,-1000.0,0.000129,2]
[328161764,1716970231992,-4094.349,0.000129,2]
[328161765,1716970232003,-228.35024266,0.000129,2]
[328161766,1716970232013,-199.75000345,0.000129,2]
[328161767,1716970232022,-172.90187236,0.000129,2]
[328161768,1716970232031,-32011.6638029,0.0001297,2]
[328161769,1716970232041,-151.0,0.0001297,2]
[328161770,1716970232050,-145094.06151418,0.0001298,2]
[328161771,1716970232062,-2165.5224,0.0001298,2]
[328161772,1716970232074,-340.786446,0.0001298,2]
[328161773,1716970232085,-307142.39094235,0.0001298,2]
[328161774,1716970232096,-679.58891,0.0001298,2]
[328161775,1716970232108,-720.0,0.0001298,2]
[328161776,1716970232119,-36419.99984,0.0001298,2]
[328161777,1716970232969,-3578.31500282,0.0001298,2]
[328161778,1716970232981,-59597.85895692,0.0001298,2]
[328161786,1716970237683,-6489.0085,0.0001288,2]
[328161787,1716970237693,-437504.78322517,0.0001298,2]
[328161788,1716970237936,-2387.54388334,0.0001298,2]
[328161789,1716970238064,-7775.9653312,0.0001298,2]
[328161790,1716970238076,-3900.0,0.0001298,2]
[328161791,1716970238134,-308731.21787887,0.0001298,2]
[328161792,1716970238146,-1986.363181,0.0001298,2]
[328161793,1716970238158,-785.96621784,0.0001298,2]
[328161794,1716970238169,-1236.9471104,0.0001298,2]
[328161795,1716970238180,-999.1292514,0.0001298,2]
[328161796,1716970238192,-387.8123766,0.0001298,2]
[328161831,1716970240301,-76810.85442439,0.0001298,2]
[328161833,1716970242539,-292625.04522452,0.0001298,2]
[328161834,1716970242607,-46587.92139194,0.0001298,2]
[328161836,1716970242620,-702.30935379,0.0001298,2]
[328161838,1716970242634,-1549.07524554,0.0001298,2]
[328161843,1716970242676,-108506.73876758,0.0001298,2]
[328161845,1716970242815,-1333.09303738,0.0001298,2]
[328161846,1716970242898,-2043.72080312,0.0001298,2]
[328161861,1716970243187,-393014.08983623,0.0001298,2]
[328161864,1716970243226,-8990.68055469,0.0001298,2]
[328161865,1716970243238,-555.26523048,0.0001298,2]
[328161866,1716970243251,-2963.42099375,0.0001298,2]
[328161867,1716970243264,-476801.37405264,0.0001298,2]
[328161868,1716970243356,-444.83898708,0.0001298,2]
[328161899,1716970245719,-922.12073848,0.0001298,2]
[328161900,1716970245732,-523.98031464,0.0001298,2]
[328161901,1716970245743,-50700.0,0.0001298,2]
[328161902,1716970245787,-2350.69952115,0.0001298,2]
[328161903,1716970245798,-14462.61894484,0.0001298,2]
[328161904,1716970245810,-196678.7753509,0.0001298,2]
[328161905,1716970245819,-151.0,0.0001299,2]
[328161906,1716970245829,-151.0,0.0001299,2]
[328161907,1716970245838,-151.0,0.0001299,2]
[328161908,1716970245847,-150.0,0.00012997,2]
[328161909,1716970245856,-788.56037605,0.00012998,2]
[328161910,1716970245866,-1278.70750154,0.00012998,2]
[328161911,1716970245875,-411.78939649,0.00012998,2]
[328161912,1716970245884,-278.07869868,0.00012998,2]
[328161913,1716970245893,-731.13604982,0.00012998,2]
[328161914,1716970245903,-214.61507558,0.00012998,2]
[328161915,1716970245912,-3093.8188963,0.00012998,2]
[328161916,1716970245920,-218.8358322,0.00012998,2]
[328161917,1716970245930,-947.47525297,0.00012998,2]
[328161918,1716970245939,-247.66878589,0.00012998,2]
[328161919,1716970245947,-1084.15670904,0.00012998,2]
[328161920,1716970245956,-659.60160277,0.00012998,2]
[328161921,1716970245966,-168.29483398,0.00012998,2]
[328161922,1716970245975,-5280.97063007,0.00012998,2]
[328161923,1716970245984,-156.27696473,0.00012998,2]
[328161924,1716970245993,-2188.53861127,0.00012999,2]
[328161925,1716970246003,-151.0413497,0.00012999,2]
[328161926,1716970246014,-863.10403665,0.00012999,2]
[328161927,1716970246023,-150.0,0.00012999,2]
[328161928,1716970246032,-118762.25247742,0.00013,2]
[328161929,1716970246041,-185892.10794951,0.00013,2]
[328161930,1716970246053,-404.0,0.00013,2]
[328161931,1716970246063,-4055.06122913,0.00013,2]
[328161932,1716970246075,-1701.15,0.00013,2]
[328161933,1716970246087,-102109.48268494,0.00013,2]
[328161934,1716970246098,-410.45153461,0.00013,2]
[328161935,1716970246109,-1016.83024367,0.00013,2]
[328161936,1716970246120,-1696.85,0.00013,2]
[328161938,1716970246174,-2321.39199996,0.00013,2]
[328161963,1716970911288,-307.79085563,0.00011696,2]
[328161964,1716970911309,-425.1895654,0.00011698,2]
[328161965,1716970911331,-958.10487205,0.0001235,2]
[328161966,1716970911352,-540.04,0.00012478,2]
[328161967,1716970911373,-411.86496791,0.00012766,2]
[328161968,1716970911393,-500.0,0.0001288,2]
[328161969,1716970911414,-1000.0,0.0001288,2]
[328161970,1716970911435,-2493.9809,0.0001288,2]
[328161971,1716970911455,-500.0,0.00012895,2]
[328161972,1716970911475,-500.0,0.00012896,2]
[328161973,1716970911496,-172.31197726,0.000129,2]
[328161974,1716970911525,-10707.9814,0.000129,2]
[328161975,1716970911551,-3009.39220321,0.000129,2]
[328161976,1716970911575,-179.78792452,0.000129,2]
[328161977,1716970911595,-461.78697446,0.000129,2]
[328161978,1716970911616,-690.48322932,0.00012999,2]
[328161979,1716970911637,-2234528.51392226,0.00013,2]
[328161980,1716970911658,-1991.92965368,0.00013,2]
[328161981,1716970911678,-500.0,0.00013,2]
[328161982,1716970911704,-500.0,0.00013,2]
[328161983,1716970911727,-500.0,0.00013,2]
[328161984,1716970911748,-720.0,0.00013,2]
[328161985,1716970911771,-500.0,0.00013,2]
[328161986,1716970911793,-500.0,0.00013,2]
[328161987,1716970911817,-500.0,0.00013,2]
[328161988,1716970911838,-500.0,0.00013,2]
[328161989,1716970911858,-500.0,0.00013,2]
[328161990,1716970911878,-500.0,0.00013,2]
[328161991,1716970911899,-609.0,0.00013,2]
[328161992,1716970911921,-990939.2430543,0.00013,2]
[328161993,1716971228758,500.0,0.000123,4]
[328161994,1716971230860,1000.0,0.000124,4]
[328161995,1716971232940,1500.0,0.000125,4]
[328161996,1716971235095,2100.0,0.000126,4]
[328161997,1716971237198,2600.0,0.000127,4]
[328161998,1716971239346,500.0,0.000128,4]
[328161999,1716971241436,500.0,0.000129,4]
[328162003,1716971276733,162.8,0.000281,120]